bitfinex-derivatives/quotes_ETHF0:USTF0_20250126
["timestamp","ask_amount","ask_price","bid_price","bid_amount"]
[1737859742648,0.00299904,3325.9,3325.8,0.97662456]
[1737859743447,0.00299904,3325.9,3325.6,0.97662456]
[1737859743646,1.29847904,3325.9,3325.4,8.90013324]
[1737859743948,0.6917,3325.8,3325.4,8.90013324]
[1737859744148,0.656,3325.7,3325.4,8.90013324]
[1737859744639,0.656,3325.7,3325.4,8.22373324]
[1737859745641,3.2078,3325.6,3325.1,2.06393324]
[1737859745944,0.656,3325.7,3324.9,0.24247465]
[1737859745945,3.2078,3325.2,3324.9,0.24247465]
[1737859746138,0.6917,3325.1,3324.8,3.32999324]
[1737859747144,0.6917,3325.1,3324.8,2.72833324]
[1737859747544,1.3542,3325.1,3324.8,3.33000324]
[1737859748434,0.6917,3325.1,3324.8,2.72833324]
[1737859748641,0.6917,3325.1,3324.9,0.60166]
[1737859749942,0.6917,3325.1,3324.8,2.72833324]
[1737859750149,0.6917,3325.1,3324.8,3.32999324]
[1737859750345,0.6917,3325.1,3324.8,2.66559324]
[1737859750545,0.6917,3325.1,3324.8,2.06393324]
[1737859750847,0.60165,3325.0,3324.5,2.06844601]
[1737859751338,0.6863,3324.9,3324.5,2.06844601]
[1737859751539,0.6793,3324.8,3324.5,2.06844601]
[1737859755150,0.6793,3324.8,3324.5,2.67017601]
[1737859756553,0.6793,3324.8,3324.5,2.06844601]
[1737859757454,0.6863,3324.9,3324.5,2.06844601]
[1737859757659,0.6863,3324.9,3324.5,2.67016601]
[1737859759455,1.3942,3325.1,3324.5,2.67016601]
[1737859759651,1.3942,3325.1,3324.5,2.06844601]
[1737859759954,1.3942,3325.1,3324.7,0.60168]
[1737859760356,1.3942,3325.1,3324.8,1.3249]
[1737859764553,1.3942,3325.1,3324.8,0.6666]
[1737859764860,0.7199,3325.0,3324.8,0.6666]
[1737859765062,0.7199,3325.0,3324.5,2.67015601]
[1737859765256,0.7199,3325.0,3324.6,0.6017]
[1737859766956,0.7199,3325.0,3324.5,3.33297601]
[1737859767363,0.7199,3325.0,3324.6,0.60171]
[1737859767672,0.7199,3325.0,3324.5,2.73124601]
[1737859767861,0.7199,3325.0,3324.6,0.60171]
[1737859768058,0.6917,3325.1,3324.6,0.60169]
[1737859768262,0.6917,3325.1,3324.7,1.27618]
[1737859775668,0.6917,3325.1,3325.0,0.97741994]
[1737859778873,3.2078,3325.2,3325.0,0.97741994]
[1737859782471,3.2078,3325.2,3325.1,0.60163]
[1737859784970,1.02463569,3325.6,3325.5,0.60156]
[1737859784971,4.23243569,3325.6,3325.5,0.60156]
[1737859785177,3.2078,3325.6,3325.5,1.57897994]
[1737859785572,12.8800328,3325.8,3325.7,0.60152]
[1737859785770,12.8800328,3325.8,3325.7,1.57893994]
[1737859786368,12.8800328,3325.8,3325.7,0.97741994]
[1737859786976,0.00299904,3325.9,3325.7,0.97741994]
[1737859787777,0.00299904,3325.9,3325.6,4.0154091]
[1737859788278,0.00299904,3325.9,3325.7,0.6987]
[1737859788674,0.00299904,3325.9,3325.8,0.6015]
[1737859793075,0.00299904,3325.9,3325.8,0.8423304]
[1737859796169,0.00299904,3325.9,3325.7,0.6987]
[1737859796584,0.00299904,3325.9,3325.6,1.3502]
[1737859798875,0.00299904,3325.9,3325.5,3.80936]
[1737859798876,0.00299904,3325.9,3325.5,3.2078]
[1737859799186,0.00299904,3325.9,3325.4,0.6457]
[1737859799187,3.2078,3325.7,3325.4,0.6457]
[1737859800383,3.2078,3325.7,3325.4,1.24726]
[1737859801776,3.2078,3325.7,3325.4,0.6457]
[1737859803281,3.2078,3325.7,3325.4,1.24727]
[1737859803984,3.2078,3325.7,3325.4,0.6457]
[1737859804379,0.669,3325.6,3325.4,0.6457]
[1737859806374,3.2078,3325.7,3325.4,1.24727]
[1737859807382,3.2078,3325.7,3325.4,0.6457]
[1737859809179,3.80932,3325.7,3325.3,2.0636691]
[1737859810490,3.2078,3325.7,3325.3,2.0636691]
[1737859811577,0.60155,3325.6,3325.2,0.6602]
[1737859811778,1.4144,3325.5,3325.0,2.0636691]
[1737859812388,0.679,3325.4,3325.0,2.0636691]
[1737859812892,0.679,3325.4,3325.0,2.6653191]
[1737859814577,0.679,3325.4,3325.0,2.0636691]
[1737859814782,0.679,3325.4,3325.0,2.6653191]
[1737859815084,0.679,3325.4,3325.0,2.0636691]
[1737859816595,0.679,3325.4,3325.0,2.6653191]
[1737859821686,0.679,3325.4,3325.3,0.97725663]
[1737859822391,3.2078,3325.5,3325.3,0.97725663]
[1737859822689,3.2078,3325.5,3325.4,0.685]
[1737859827888,3.2078,3325.5,3325.3,2.33895663]
[1737859828190,0.6668,3325.4,3325.3,2.33895663]
[1737859828892,1.64405663,3325.4,3324.9,0.97725663]
[1737859829095,1.64405663,3325.4,3324.7,0.97725663]
[1737859829096,3.2078,3325.1,3324.7,0.97725663]
[1737859829281,0.60166,3325.0,3324.7,0.97725663]
[1737859829486,0.6668,3325.0,3324.7,0.97725663]
[1737859829687,0.60167,3324.9,3324.7,0.97725663]
[1737859829888,0.6668,3325.0,3324.7,0.97725663]
[1737859830090,1.26845,3325.0,3324.7,0.97725663]
[1737859830897,0.6668,3325.0,3324.7,0.97725663]
[1737859831089,0.60168,3324.9,3324.7,0.97725663]
[1737859831290,1.3667,3324.8,3324.7,0.97725663]
[1737859831691,1.3667,3324.8,3324.6,0.6757]
[1737859832487,0.6881,3324.8,3324.6,0.6757]
[1737859832695,0.6668,3325.0,3324.6,0.6757]
[1737859832892,0.60168,3324.8,3324.7,1.3968]
[1737859842007,3.80948,3324.8,3324.7,1.3968]
[1737859844802,3.2078,3324.8,3324.7,1.3968]
[1737859844999,3.80948,3324.8,3324.7,1.3968]
[1737859846211,3.2078,3324.8,3324.7,1.3968]
[1737859851006,0.6017,3324.7,3324.6,0.6757]
[1737859851208,1.2579,3324.7,3324.6,0.6757]
[1737859852308,1.9621,3324.7,3324.6,0.6757]
[1737859853610,1.3604,3324.7,3324.6,0.6757]
[1737859853816,1.3604,3324.7,3324.6,1.65329878]
[1737859858318,0.6562,3324.7,3324.6,1.65329878]
[1737859863821,3.2078,3324.8,3324.6,1.65329878]
[1737859867322,0.6603,3324.7,3324.6,1.65329878]
[1737859868720,0.60172,3324.6,3324.5,0.00451277]
[1737859868920,1.28272,3324.6,3324.5,0.00451277]
[1737859875626,2.26031878,3324.6,3324.5,0.00451277]
[1737859875827,0.60181,3324.1,3324.0,0.97759878]
[1737859876927,1.25921,3324.1,3324.0,0.97759878]
[1737859878032,0.6574,3324.1,3323.8,0.97759878]
[1737859878332,3.80965,3323.9,3323.8,0.97759878]
[1737859882936,3.80965,3323.9,3323.8,2.37549878]
[1737859883937,3.2078,3323.9,3323.8,2.37549878]
[1737859884126,3.80965,3323.9,3323.8,2.37549878]
[1737859887637,0.60185,3323.9,3323.8,2.37549878]
[1737859887836,3.80965,3323.9,3323.8,2.37549878]
[1737859888037,3.80965,3323.9,3323.8,1.65289878]
[1737859889739,0.60187,3323.8,3323.7,0.00451277]
[1737859889948,1.32187,3323.8,3323.7,0.00451277]
[1737859902261,4.52967,3323.8,3323.7,0.00451277]
[1737859912869,5.50726878,3323.8,3323.7,0.00451277]
[1737859914860,4.52967,3323.8,3323.7,0.00451277]
[1737859916170,5.00234743,3323.8,3323.7,0.00451277]
[1737859917565,5.97994621,3323.8,3323.7,0.00451277]
[1737859921169,5.00234743,3323.8,3323.7,0.00451277]
[1737859932081,4.52967,3323.8,3323.7,0.00451277]
[1737859932871,5.0025779,3323.8,3323.7,0.00451277]
[1737859933677,5.98017668,3323.8,3323.7,0.00451277]
[1737859933878,5.75228529,3323.8,3323.1,0.7073]
[1737859934180,3.80977,3323.2,3323.1,1.434]
[1737859934579,4.46547,3323.2,3323.1,1.434]
[1737859934876,0.60205,3322.8,3322.7,0.689]
[1737859935187,3.80985,3322.8,3322.7,0.689]
[1737859936291,3.80985,3322.8,3322.7,1.4157]
[1737859948294,4.48035,3322.8,3322.7,1.4157]
[1737859958094,3.80985,3322.8,3322.7,1.4157]
[1737859964202,4.28359635,3322.8,3322.7,1.4157]
[1737859964900,3.80985,3322.8,3322.7,1.4157]
[1737859972609,3.2078,3322.8,3322.7,1.4157]
[1737859974502,3.80985,3322.8,3322.7,1.4157]
[1737859975003,4.78744878,3322.8,3322.7,1.4157]
[1737859975904,0.6021,3322.5,3322.4,0.00451277]
[1737859976111,1.57969878,3322.5,3322.4,0.00451277]
[1737859977608,1.27079,3322.6,3322.4,0.00451277]
[1737859977910,0.6021,3322.5,3322.4,0.00451277]
[1737859979505,3.8099,3322.5,3322.4,0.00451277]
[1737859979708,3.2078,3322.5,3322.4,0.00451277]
[1737859983914,3.2078,3322.5,3322.4,1.58423155]
[1737859984913,3.2078,3322.5,3322.4,0.98211155]
[1737859988017,3.2078,3322.5,3322.4,1.58423155]
[1737859989816,3.2078,3322.9,3322.6,0.60207]
[1737859990017,3.2078,3322.9,3322.7,2.33469878]
[1737859990213,3.2078,3322.9,3322.7,2.93675878]
[1737859990420,3.2078,3322.9,3322.8,0.60205]
[1737859991307,3.2078,3322.9,3322.7,2.93674878]
[1737859991716,3.2078,3322.9,3322.8,0.60205]
[1737859996218,3.2078,3322.9,3322.7,2.33469878]
[1737859996623,3.2078,3322.9,3322.7,2.93674878]
[1737859999128,3.2078,3322.8,3322.7,2.93674878]
[1737860000525,3.2078,3322.8,3322.7,2.33469878]
[1737860001623,3.80985,3322.8,3322.5,1.68259878]
[1737860001928,1.3638,3322.7,3322.5,1.68259878]
[1737860004116,2.035,3322.7,3322.5,1.68259878]
[1737860004328,3.01259878,3322.7,3322.4,0.00451277]
[1737860004528,0.6021,3322.6,3322.4,0.00451277]
[1737860004723,3.01259878,3322.7,3322.4,0.00451277]
[1737860004927,0.6021,3322.5,3322.4,0.00451277]
[1737860006535,3.01259878,3322.7,3322.4,0.00451277]
[1737860006831,2.63708,3322.7,3322.4,0.00451277]
[1737860007023,2.035,3322.7,3322.4,0.00451277]
[1737860007217,0.60208,3322.6,3322.4,0.00451277]
[1737860007421,3.01259878,3322.7,3322.4,0.00451277]
[1737860007633,0.6021,3322.5,3322.4,0.00451277]
[1737860007827,1.57969878,3322.5,3322.4,0.00451277]
[1737860009133,0.6021,3322.5,3322.4,0.00451277]
[1737860010932,1.57969878,3322.5,3322.4,0.00451277]
[1737860014238,0.6021,3322.5,3322.4,0.00451277]
[1737860016637,2.63708,3322.7,3322.4,0.00451277]
[1737860020644,0.6021,3322.6,3322.4,0.00451277]
[1737860020936,0.97759878,3322.5,3322.4,0.00451277]
[1737860021136,1.57969878,3322.5,3322.4,0.00451277]
[1737860023437,0.6021,3322.5,3322.4,0.00451277]
[1737860023639,1.57969878,3322.5,3322.4,0.00451277]
[1737860030552,0.6021,3322.5,3322.4,0.00451277]
[1737860034653,1.07566933,3322.5,3322.4,0.00451277]
[1737860035351,0.60209,3322.6,3322.4,0.00451277]
[1737860037652,0.6951,3322.7,3322.4,0.60662277]
[1737860037852,0.6951,3322.7,3322.5,0.6021]
[1737860038355,3.2078,3322.8,3322.6,0.6641]
[1737860039252,3.80984,3322.8,3322.6,0.6641]
[1737860039456,3.2078,3322.8,3322.6,1.26618]
[1737860041457,3.80985,3322.8,3322.6,0.6641]
[1737860042253,3.2078,3322.8,3322.6,0.6641]
[1737860042467,3.2078,3322.8,3322.6,1.26617]
[1737860042946,3.80985,3322.8,3322.6,1.26617]
[1737860043268,3.2078,3322.8,3322.7,1.57965878]
[1737860045456,3.2078,3322.8,3322.7,0.97759878]
[1737860049754,3.2078,3322.8,3322.7,1.57965878]
[1737860050462,3.2078,3322.8,3322.7,0.97759878]
[1737860057361,3.2078,3322.8,3322.7,1.57965878]
[1737860061668,3.19877446,3322.8,3322.7,1.82546273]
[1737860061868,2.69988358,3322.8,3322.7,1.82546273]
[1737860063360,2.25650368,3322.8,3322.7,1.82546273]
[1737860067968,0.6572,3323.5,3323.1,0.60198]
[1737860067969,3.2078,3323.2,3323.1,0.60198]
[1737860068159,3.2078,3323.2,3323.1,1.57957878]
[1737860072472,3.2078,3323.2,3323.1,1.82535487]
[1737860075171,3.2078,3323.2,3323.1,0.97759878]
[1737860075571,3.2078,3323.2,3323.1,1.57958878]
[1737860076274,3.2078,3323.2,3323.1,0.60199]
[1737860077369,3.2078,3323.2,3323.0,0.97759878]
[1737860077570,0.7151,3323.1,3323.0,1.57959878]
[1737860083583,0.7151,3323.1,3323.0,2.29689878]
[1737860087278,3.2078,3323.3,3323.0,2.67249756]
[1737860087479,3.2078,3323.3,3323.2,0.97759878]
[1737860088879,3.2078,3323.3,3323.2,1.57956878]
[1737860096083,12.8800328,3323.8,3323.7,0.60188]
[1737860096084,16.0878328,3323.8,3323.7,0.60188]
[1737860096284,16.0878328,3323.8,3323.7,1.57947878]
[1737860099792,3.2078,3323.8,3323.7,1.57947878]
[1737860102285,3.21231277,3324.2,3323.7,2.89619756]
[1737860102496,1.3766,3324.5,3324.4,0.60175]
[1737860102785,1.0740492,3324.5,3324.4,1.57934878]
[1737860103593,0.6547,3324.5,3324.4,1.57934878]
[1737860106286,0.00451277,3324.8,3324.4,0.97759878]
[1737860106487,0.7239,3324.9,3324.8,0.60168]
[1737860106694,0.7239,3324.9,3324.8,1.57927878]
[1737860113193,3.21231277,3325.2,3324.8,1.95519756]
[1737860113401,3.21231277,3325.2,3325.1,1.57922878]
[1737860113796,3.21231277,3325.2,3325.1,2.28472878]
[1737860120398,0.00451277,3325.2,3325.1,2.28472878]
[1737860121003,0.00451277,3325.2,3325.1,2.5285409]
[1737860121203,0.00451277,3325.2,3325.1,0.60163]
[1737860123710,0.00451277,3325.2,3325.0,1.21943631]
[1737860123711,0.00451277,3325.2,3325.0,0.97759878]
[1737860124009,3.2078,3325.1,3325.0,0.97759878]
[1737860124206,3.2078,3325.1,3324.8,0.97759878]
[1737860124411,0.6972,3325.0,3324.8,0.97759878]
[1737860125313,0.6972,3325.0,3324.9,0.60166]
[1737860125506,0.6972,3325.0,3324.9,2.60786]
[1737860132134,0.00451277,3325.2,3324.9,2.98379878]
[1737860132431,0.00451277,3325.2,3325.1,1.57922878]
[1737860187966,0.6754,3325.4,3325.1,0.97759878]
[1737860188172,0.6754,3325.4,3325.3,1.57918878]
[1737860192974,0.6754,3325.4,3325.3,1.81782352]
[1737860194578,0.6754,3325.4,3325.3,5.02562352]
[1737860202090,1.3567,3325.6,3325.3,5.02562352]
[1737860202091,3.2078,3326.1,3325.3,4.42403352]
[1737860202385,3.2078,3326.1,3326.0,0.97759878]
[1737860203582,3.2078,3326.1,3326.0,1.57905878]
[1737860205785,3.2078,3326.1,3326.0,2.55665756]
[1737860205993,3.2078,3326.1,3326.0,1.57905878]
[1737860206888,3.2078,3326.1,3326.0,2.55665756]
[1737860212384,3.2078,3326.1,3326.0,2.55666756]
[1737860214902,3.2078,3326.2,3326.1,0.60145]
[1737860215199,3.2078,3326.2,3326.0,1.95519756]
[1737860215494,0.6569,3326.1,3326.0,2.55665756]
[1737860215990,1.3968,3326.4,3326.0,2.55665756]
[1737860215991,0.6569,3326.3,3326.2,0.60142]
[1737860216191,0.6569,3326.3,3326.2,1.57901878]
[1737860217885,16.0878328,3326.6,3326.2,0.97759878]
[1737860217886,3.2078,3326.6,3326.2,0.97759878]
[1737860218095,0.6721,3326.5,3326.3,1.99589]
[1737860218293,0.6721,3326.5,3326.4,0.60139]
[1737860221202,0.6721,3326.5,3326.4,1.57898878]
[1737860237503,0.6721,3326.5,3326.4,0.97759878]
[1737860242707,0.6721,3326.5,3326.4,1.57898878]
[1737860249914,3.2078,3326.6,3326.5,0.60137]
[1737860250108,3.68121686,3326.6,3326.5,0.60137]
[1737860253012,0.47341686,3326.6,3326.5,0.60137]
[1737860253211,3.2078,3326.6,3326.5,0.60137]
[1737860253510,3.68121686,3326.6,3326.5,0.60137]
[1737860254210,3.2078,3326.6,3326.5,0.60137]
[1737860256717,0.6916,3326.8,3326.6,0.60136]
[1737860256918,3.2078,3326.7,3326.6,0.60136]
[1737860257222,3.2078,3326.7,3326.6,1.57895878]
[1737860260018,0.6916,3326.8,3326.6,1.57895878]
[1737860260218,3.2078,3326.7,3326.6,1.57895878]
[1737860261923,4.05549004,3326.7,3326.6,1.57895878]
[1737860264017,4.05549004,3326.7,3326.6,0.97759878]
[1737860266120,4.05549004,3326.7,3326.6,1.57895878]
[1737860268922,3.2078,3326.7,3326.6,1.57895878]
[1737860269720,3.2078,3326.7,3326.6,0.97759878]
[1737860279231,3.2078,3326.7,3326.6,1.57895878]
[1737860280533,3.2078,3326.7,3326.6,0.97759878]
[1737860282438,3.80914,3326.7,3326.3,3.67699878]
[1737860282642,0.60137,3326.6,3326.3,3.07559878]
[1737860282938,0.60137,3326.6,3326.5,0.97759878]
[1737860283640,3.2078,3326.7,3326.5,0.97759878]
[1737860283641,3.80915,3326.7,3326.5,0.97759878]
[1737860283937,0.47352606,3326.6,3326.5,0.97759878]
[1737860287443,0.47352606,3326.6,3326.5,1.57896878]
[1737860287643,0.47352606,3326.6,3326.5,0.97759878]
[1737860287941,3.2078,3326.7,3326.5,0.97759878]
[1737860288141,0.47347321,3326.6,3326.5,0.97759878]
[1737860288342,3.2078,3326.7,3326.5,0.97759878]
[1737860288738,0.47346976,3326.6,3326.5,0.97759878]
[1737860292046,3.2078,3326.7,3326.5,0.97759878]
[1737860293348,0.60133,3326.8,3326.5,0.97759878]
[1737860293644,3.9229,3326.6,3326.5,0.97759878]
[1737860294742,3.9229,3326.6,3326.5,1.57896878]
[1737860294944,3.2078,3326.6,3326.5,1.57896878]
[1737860296144,3.2078,3326.6,3326.5,0.97759878]
[1737860296743,3.2078,3326.6,3326.5,1.57896878]
[1737860299152,3.68127636,3326.6,3326.5,1.57896878]
[1737860301049,3.2078,3326.6,3326.5,1.57896878]
[1737860310650,12.8800328,3326.9,3326.6,0.60134]
[1737860310957,12.8800328,3326.9,3326.8,0.97759878]
[1737860311158,16.0878328,3326.9,3326.8,0.97759878]
[1737860313653,16.0878328,3326.9,3326.8,1.57891878]
[1737860313856,16.0878328,3326.9,3326.8,2.55651756]
[1737860314652,16.0878328,3326.9,3326.8,1.57891878]
[1737860315052,16.0878328,3326.9,3326.8,0.97759878]
[1737860315250,16.0878328,3326.9,3326.8,1.57891878]
[1737860318369,16.0878328,3326.9,3326.8,2.55651756]
[1737860318670,3.2078,3326.9,3326.8,2.55651756]
[1737860319662,3.2078,3326.9,3326.8,1.57891878]
[1737860320064,3.2078,3326.9,3326.8,2.55651756]
[1737860320368,3.2078,3326.9,3326.8,1.57891878]
[1737860320753,3.2078,3326.9,3326.8,2.55651756]
[1737860320962,2.09347698,3326.9,3326.8,2.55651756]
[1737860321361,2.09347698,3326.9,3326.8,3.49451756]
[1737860322468,3.2078,3327.4,3326.8,2.89319756]
[1737860322668,3.2078,3327.4,3327.3,1.57882878]
[1737860324171,2.71420659,3327.4,3327.3,1.57882878]
[1737860331182,12.8800328,3327.6,3327.5,0.60119]
[1737860331375,12.8800328,3327.6,3327.5,1.57878878]
[1737860332174,0.68,3327.7,3327.5,1.57878878]
[1737860332887,0.68,3327.7,3327.6,0.60118]
[1737860333283,0.68,3327.7,3327.5,0.97759878]
[1737860333483,0.68,3327.7,3327.5,1.57878878]
[1737860333875,0.68,3327.7,3327.5,0.97759878]
[1737860334074,0.68,3327.7,3327.6,0.60118]
[1737860340583,0.68,3327.7,3327.5,1.57877878]
[1737860340791,0.68,3327.7,3327.5,0.97759878]
[1737860340982,0.68,3327.7,3327.6,0.60118]
[1737860341383,0.68,3327.7,3327.6,2.72708]
[1737860347292,1.4261,3328.2,3327.6,2.1259]
[1737860347486,0.7181,3328.1,3327.8,0.60113]
[1737860347993,0.7181,3328.1,3327.6,2.13041277]
[1737860348385,0.7181,3328.1,3327.9,0.60112]
[1737860349695,0.7181,3328.1,3328.0,2.55629756]
[1737860351390,0.7181,3328.1,3328.0,0.97759878]
[1737860355702,0.7181,3328.1,3328.0,3.01339878]
[1737860357401,0.7181,3328.1,3328.0,2.33249878]
[1737860358103,0.7181,3328.1,3328.0,3.04049878]
[1737860358799,0.7181,3328.1,3328.0,3.64159878]
[1737860359104,3.2078,3328.3,3328.0,4.61919756]
[1737860359306,3.2078,3328.3,3328.2,0.97759878]
[1737860362407,0.7193,3328.4,3328.2,1.57866878]
[1737860363808,0.7193,3328.4,3328.2,0.97759878]
[1737860364006,0.7193,3328.4,3328.3,1.33205]
[1737860364706,12.8800328,3328.7,3328.5,0.601]
[1737860364903,0.7024,3328.6,3328.5,0.601]
[1737860370012,3.2078,3328.9,3328.7,0.60098]
[1737860370214,0.6907,3328.8,3328.7,0.60098]
[1737860371319,0.6907,3328.8,3328.7,1.57857878]
[1737860378223,3.2078,3328.9,3328.7,0.97759878]
[1737860378424,3.2078,3328.9,3328.8,1.96526]
[1737860380618,3.2078,3328.9,3328.8,2.94285878]
[1737860383025,3.2078,3328.9,3328.8,1.96526]
[1737860385627,4.51797,3329.4,3328.8,1.3643]
[1737860385828,4.51797,3329.4,3329.3,0.97759878]
[1737860386021,3.9171,3329.4,3329.3,0.97759878]
[1737860386223,4.51795,3329.4,3329.3,0.97759878]
[1737860386825,3.9171,3329.4,3329.3,0.97759878]
[1737860389931,3.9171,3329.4,3329.3,1.57846878]
[1737860390524,3.9171,3329.4,3329.3,0.97759878]
[1737860392326,3.2078,3329.4,3329.3,0.97759878]
[1737860392535,3.2078,3329.4,3329.3,2.30856878]
[1737860393335,12.8800328,3329.8,3329.3,1.70769878]
[1737860393528,12.8800328,3329.8,3329.7,0.97759878]
[1737860395828,12.8800328,3329.8,3329.7,1.57839878]
[1737860396031,12.8800328,3329.8,3329.7,0.97759878]
[1737860396533,12.8800328,3329.8,3329.7,2.38429878]
[1737860396728,12.8800328,3329.8,3329.7,3.05699878]
[1737860396929,12.8800328,3329.8,3329.7,3.65779878]
[1737860397141,0.01201,3330.0,3329.7,3.05699878]
[1737860397334,0.01201,3330.0,3329.9,0.97759878]
[1737860399938,0.01201,3330.0,3329.9,1.57835878]
[1737860400632,0.01380028,3330.0,3329.9,1.57835878]
[1737860402941,0.01380028,3330.0,3329.9,2.55595756]
[1737860408841,0.6686,3330.4,3329.9,1.95519756]
[1737860409140,0.6686,3330.4,3330.3,0.97759878]
[1737860409641,0.6686,3330.4,3330.3,1.57828878]
[1737860410034,3.2078,3330.6,3330.4,0.60065]
[1737860410234,3.2078,3330.6,3330.5,2.97484878]
[1737860411433,3.2078,3330.6,3330.5,2.37419878]
[1737860412432,0.6856,3330.8,3330.5,2.37419878]
[1737860412637,0.6856,3330.8,3330.7,0.97759878]
[1737860414541,3.2078,3331.0,3330.7,0.97759878]
[1737860414735,3.2078,3331.0,3330.9,0.97759878]
[1737860415042,3.66571567,3331.0,3330.9,0.97759878]
[1737860415236,3.2078,3331.0,3330.9,0.97759878]
[1737860415740,3.2078,3331.0,3330.9,2.55577756]
[1737860418646,3.2078,3331.0,3330.9,0.97759878]
[1737860418843,3.80836,3331.0,3330.9,0.97759878]
[1737860419040,4.51106,3331.0,3330.9,0.97759878]
[1737860419845,3.9105,3331.0,3330.9,0.97759878]
[1737860420645,4.51106,3331.0,3330.9,0.97759878]
[1737860421247,0.60058,3330.9,3330.3,0.97759878]
[1737860421448,0.60071,3330.2,3330.1,0.97759878]
[1737860421638,0.60063,3330.7,3330.1,0.97759878]
[1737860421841,3.80848,3330.4,3330.3,0.97759878]
[1737860422342,0.6768,3330.5,3330.3,0.97759878]
[1737860422646,0.6768,3330.5,3330.4,0.97759878]
[1737860423346,0.60069,3330.3,3330.2,0.97759878]
[1737860423749,0.60069,3330.3,3329.9,2.05862753]
[1737860424334,3.2078,3330.2,3329.9,2.05862753]
[1737860424640,3.80851,3330.2,3329.9,2.05862753]
[1737860424949,0.68,3330.1,3329.9,2.05862753]
[1737860427045,3.8878,3330.1,3329.9,2.05862753]
[1737860428149,4.48853,3330.1,3329.9,2.05862753]
[1737860428346,3.8878,3330.1,3329.9,2.05862753]
[1737860430848,4.48853,3330.1,3329.9,2.05862753]
[1737860431045,3.8878,3330.1,3329.9,2.05862753]
[1737860431242,0.60077,3329.9,3329.6,2.05862753]
[1737860431550,3.2078,3329.7,3329.6,2.05862753]
[1737860436151,3.2078,3329.7,3329.6,2.65943753]
[1737860441158,0.68,3330.1,3329.6,2.65943753]
[1737860441353,0.68,3330.1,3329.7,0.6743]
[1737860441860,0.68,3330.1,3329.9,2.05862753]
[1737860442254,3.8878,3330.1,3329.9,2.05862753]
[1737860445660,3.8878,3330.1,3330.0,0.97455311]
[1737860446555,4.48852,3330.1,3330.0,0.97455311]
[1737860448154,3.8878,3330.1,3330.0,0.97455311]
[1737860448559,0.68,3330.1,3330.0,0.97455311]
[1737860451260,4.48852,3330.1,3330.0,0.97455311]
[1737860451761,4.48852,3330.1,3329.7,0.6743]
[1737860451762,0.60077,3329.9,3329.8,0.97455311]
[1737860457563,4.5661,3330.0,3329.6,0.97455311]
[1737860457765,0.60081,3329.7,3329.6,0.97455311]
[1737860458664,0.60076,3329.9,3329.6,0.97455311]
[1737860458867,4.5661,3330.0,3329.8,0.97455311]
[1737860459056,0.60076,3329.9,3329.8,0.97455311]
[1737860460765,1.06055944,3329.9,3329.8,0.97455311]
[1737860463271,0.45979944,3329.9,3329.8,0.97455311]
[1737860463476,0.45965961,3329.9,3329.8,0.97455311]
[1737860464471,5.16685,3330.0,3329.8,0.97455311]
[1737860464667,3.80855,3330.0,3329.8,0.97455311]
[1737860464865,0.83292481,3329.9,3329.8,1.57533311]
[1737860465172,0.45961898,3329.9,3329.8,1.57533311]
[1737860465673,3.2078,3330.0,3329.9,0.60076]
[1737860465977,1.02463569,3330.2,3330.1,0.60072]
[1737860466170,1.02463569,3330.2,3330.1,1.57527311]
[1737860466573,1.02463569,3330.2,3330.1,2.26837311]
[1737860468069,3.9064,3330.6,3330.2,0.60069]
[1737860468271,3.9064,3330.6,3330.5,0.97455311]
[1737860468473,3.2078,3330.6,3330.5,0.97455311]
[1737860468874,1.30999,3330.9,3330.5,0.97455311]
[1737860469073,0.7094,3330.9,3330.8,0.97455311]
[1737860469275,1.16846823,3330.9,3330.8,0.97455311]
[1737860469473,1.54119695,3330.9,3330.8,0.97455311]
[1737860470281,1.16846823,3330.9,3330.8,0.97455311]
[1737860471082,3.2078,3331.0,3330.8,1.57515311]
[1737860471277,3.2078,3331.0,3330.8,0.97455311]
[1737860471482,3.2078,3331.0,3330.9,0.60058]
[1737860473677,3.2078,3331.0,3330.9,2.65798592]
[1737860478983,3.2078,3331.0,3330.9,2.05740592]
[1737860480285,3.2078,3331.0,3330.9,2.73180592]
[1737860480985,3.2078,3331.0,3330.9,3.33238592]
[1737860481386,3.2078,3331.0,3330.9,2.73180592]
[1737860482390,3.2078,3331.0,3330.6,2.76480592]
[1737860482590,0.60062,3330.7,3330.6,2.76480592]
[1737860489093,3.9244,3331.0,3330.6,2.76480592]
[1737860489290,3.2078,3331.0,3330.9,2.05740592]
[1737860489493,3.2078,3331.0,3330.9,2.65798592]
[1737860499705,3.2078,3331.0,3330.9,2.54794512]
[1737860501010,3.2078,3331.5,3331.2,0.60052]
[1737860501303,3.2078,3331.5,3331.4,0.97368256]
[1737860502211,3.2078,3331.5,3331.4,1.57416256]
[1737860502607,4.03922949,3331.5,3331.4,1.57416256]
[1737860503514,3.66659175,3331.5,3331.4,1.57416256]
[1737860503696,3.66659175,3331.5,3331.4,0.97368256]
[1737860504804,3.66659175,3331.5,3331.4,1.57416256]
[1737860507699,3.2078,3331.5,3331.4,1.57416256]
[1737860513004,0.7185,3331.7,3331.4,1.57416256]
[1737860513216,3.9263,3331.7,3331.6,0.97368256]
[1737860513708,13.4804328,3331.9,3331.6,2.88236512]
[1737860513709,4.23267722,3331.9,3331.6,2.88236512]
[1737860513912,16.13658057,3333.1,3331.8,1.94736512]
[1737860513913,0.6668,3333.0,3331.8,1.94736512]
[1737860514102,0.6668,3333.0,3332.9,0.97368256]
[1737860515813,0.6668,3333.0,3332.9,0.60021]
[1737860521113,1.4125,3333.4,3333.3,0.60014]
[1737860521416,1.4125,3333.4,3333.3,2.05498726]
[1737860521615,1.4125,3333.4,3333.3,2.65512726]
[1737860522718,1.4125,3333.4,3333.2,3.2078]
[1737860522924,1.4125,3333.4,3333.0,2.05949298]
[1737860522925,0.60016,3333.2,3333.0,0.00450572]
[1737860523223,0.60018,3333.1,3333.0,0.00450572]
[1737860524721,3.2078,3333.2,3333.0,0.00450572]
[1737860525125,0.60018,3333.1,3333.0,0.00450572]
[1737860525616,0.60018,3333.1,3332.4,5.26278726]
[1737860525617,0.60024,3332.8,3332.4,5.26278726]
[1737860525825,1.3639,3332.7,3332.4,5.26278726]